Workbook

Sheet Data
A1: 0 | B1: 8188 | C1: 8187 | D1: 8018 | E1: 8161 | F1: 8206 | G1: 8209 | H1: 8212 | I1: 8219 | J1: 8169 | K1: 8206 | L1: 8203 | N1: 1
A2: 0 | B2: 8193 | C2: 8188 | D2: 8076 | E2: 8159 | F2: 8207 | G2: 8268 | H2: 8217 | I2: 8219 | J2: 8176 | K2: 8207 | L2: 8208 | N2: =N1+1 -> 2
A3: 0 | B3: 8191 | C3: 8182 | D3: 12455 | E3: 8195 | F3: 8212 | G3: 8258 | H3: 8210 | I3: 8212 | J3: 8420 | K3: 8207 | L3: 8210 | N3: =N2+1 -> 3
A4: 0 | B4: 8185 | C4: 8185 | D4: 12428 | E4: 8184 | F4: 8212 | G4: 8199 | H4: 8208 | I4: 8226 | J4: 8170 | K4: 8201 | L4: 8211 | N4: 4
A5: 0 | B5: 8196 | C5: 8185 | D5: 8177 | E5: 8175 | F5: 8211 | G5: 8140 | H5: 8204 | I5: 8218 | J5: 8138 | K5: 8203 | L5: 8207 | N5: 5
A6: 0 | B6: 8188 | C6: 8190 | D6: 8112 | E6: 8161 | F6: 8208 | G6: 8196 | H6: 8211 | I6: 8220 | J6: 8161 | K6: 8204 | L6: 8206 | N6: 6
A7: 0 | B7: 8208 | C7: 8188 | D7: 12357 | E7: 8179 | F7: 8207 | G7: 8244 | H7: 8206 | I7: 8217 | J7: 8447 | K7: 8219 | L7: 8214 | N7: 7
A8: 0 | B8: 8196 | C8: 8183 | D8: 8170 | E8: 8170 | F8: 8210 | G8: 8109 | H8: 8200 | I8: 8211 | J8: 8177 | K8: 8196 | L8: 8208 | N8: 8
A9: 0 | B9: 8204 | C9: 8181 | D9: 12450 | E9: 8188 | F9: 8209 | G9: 8174 | H9: 8207 | I9: 8216 | J9: 8185 | K9: 8191 | L9: 8210 | N9: 9
A10: 0 | B10: 8200 | C10: 8184 | D10: 12288 | E10: 8180 | F10: 8213 | G10: 8284 | H10: 8209 | I10: 8227 | J10: 8400 | K10: 8204 | L10: 8210 | N10: 10
A11: 0 | B11: 8193 | C11: 8185 | D11: 8169 | E11: 8173 | F11: 8208 | G11: 8298 | H11: 8217 | I11: 8214 | J11: 8441 | K11: 8216 | L11: 8208 | N11: 11
A12: 0 | B12: 8210 | C12: 8192 | D12: 12428 | E12: 8187 | F12: 8212 | G12: 8389 | H12: 8225 | I12: 8218 | J12: 8161 | K12: 8211 | L12: 8207 | N12: 12
A13: 0 | B13: 8180 | C13: 8183 | D13: 8179 | E13: 8168 | F13: 8212 | G13: 8325 | H13: 8215 | I13: 8222 | J13: 8169 | K13: 8205 | L13: 8207 | N13: 13
A14: 0 | B14: 8189 | C14: 8185 | D14: 12296 | E14: 8174 | F14: 8208 | G14: 8103 | H14: 8192 | I14: 8221 | J14: 8424 | K14: 8208 | L14: 8206 | N14: 14
A15: 0 | B15: 8185 | C15: 8185 | D15: 8153 | E15: 8169 | F15: 8207 | G15: 8109 | H15: 8197 | I15: 8218 | J15: 8149 | K15: 8198 | L15: 8209 | N15: 15
A16: 0 | B16: 8211 | C16: 8185 | D16: 8038 | E16: 8157 | F16: 8207 | G16: 8203 | H16: 8209 | I16: 8218 | J16: 8128 | K16: 8179 | L16: 8207 | N16: 16
A17: 0 | B17: 8198 | C17: 8186 | D17: 12348 | E17: 8178 | F17: 8206 | G17: 8300 | H17: 8216 | I17: 8221 | J17: 8175 | K17: 8204 | L17: 8213 | N17: 17
A18: 0 | B18: 8202 | C18: 8189 | D18: 7971 | E18: 8154 | F18: 8208 | G18: 8075 | H18: 8192 | I18: 8216 | J18: 8178 | K18: 8195 | L18: 8211 | N18: 18
A19: 0 | B19: 8210 | C19: 8192 | D19: 8076 | E19: 8162 | F19: 8205 | G19: 8085 | H19: 8201 | I19: 8216 | J19: 8176 | K19: 8193 | L19: 8207 | N19: 19
A20: 0 | B20: 8207 | C20: 8186 | D20: 12463 | E20: 8184 | F20: 8210 | G20: 8210 | H20: 8210 | I20: 8221 | J20: 8425 | K20: 8216 | L20: 8209 | N20: 20
A21: 0 | B21: 8175 | C21: 8181 | D21: 8076 | E21: 8170 | F21: 8209 | G21: 8213 | H21: 8207 | I21: 8218 | J21: 8418 | K21: 8207 | L21: 8208 | N21: 21
A22: 0 | B22: 8195 | C22: 8188 | D22: 8103 | E22: 8165 | F22: 8209 | G22: 8246 | H22: 8207 | I22: 8216 | J22: 8153 | K22: 8197 | L22: 8209 | N22: 22
A23: 0 | B23: 8201 | C23: 8188 | D23: 12600 | E23: 8203 | F23: 8211 | G23: 8235 | H23: 8215 | I23: 8214 | J23: 8445 | K23: 8216 | L23: 8211 | N23: 23
A24: 0 | B24: 8207 | C24: 8185 | D24: 12405 | E24: 8186 | F24: 8210 | G24: 8358 | H24: 8226 | I24: 8229 | J24: 8407 | K24: 8209 | L24: 8209 | N24: 24
A25: 0 | B25: 8207 | C25: 8185 | D25: 12352 | E25: 8181 | F25: 8212 | G25: 8188 | H25: 8205 | I25: 8218 | J25: 8395 | K25: 8205 | L25: 8210 | N25: 25
A26: 0 | B26: 8204 | C26: 8185 | D26: 8028 | E26: 8153 | F26: 8210 | G26: 8113 | H26: 8188 | I26: 8211 | J26: 8157 | K26: 8200 | L26: 8206 | N26: 26
A27: 0 | B27: 8210 | C27: 8187 | D27: 8133 | E27: 8165 | F27: 8208 | G27: 8074 | H27: 8192 | I27: 8217 | J27: 8426 | K27: 8212 | L27: 8206 | N27: 27
A28: 0 | B28: 8188 | C28: 8187 | D28: 12296 | E28: 8173 | F28: 8206 | G28: 8150 | H28: 8205 | I28: 8215 | J28: 8183 | K28: 8194 | L28: 8210 | N28: 28
A29: 0 | B29: 8174 | C29: 8185 | D29: 8148 | E29: 8168 | F29: 8205 | G29: 8192 | H29: 8213 | I29: 8226 | J29: 8172 | K29: 8199 | L29: 8213 | N29: 29
A30: 0 | B30: 8194 | C30: 8183 | D30: 12319 | E30: 8174 | F30: 8207 | G30: 8369 | H30: 8223 | I30: 8216 | J30: 8422 | K30: 8206 | L30: 8213 | N30: 30
A31: 0 | B31: 8192 | C31: 8185 | D31: 8172 | E31: 8177 | F31: 8210 | G31: 8202 | H31: 8204 | I31: 8215 | J31: 8156 | K31: 8193 | L31: 8211 | N31: 31
A32: 0 | B32: 8207 | C32: 8189 | D32: 12314 | E32: 8183 | F32: 8209 | G32: 8128 | H32: 8200 | I32: 8223 | J32: 8131 | K32: 8190 | L32: 8207 | N32: 32
A33: 0 | B33: 8236 | C33: 8194 | D33: 12502 | E33: 8191 | F33: 8208 | G33: 8240 | H33: 8216 | I33: 8214 | J33: 8162 | K33: 8207 | L33: 8206 | N33: 33
A34: 0 | B34: 8192 | C34: 8188 | D34: 12361 | E34: 8181 | F34: 8210 | G34: 8322 | H34: 8218 | I34: 8219 | J34: 8432 | K34: 8213 | L34: 8203 | N34: 34
A35: 0 | B35: 8182 | C35: 8189 | D35: 8110 | E35: 8171 | F35: 8211 | G35: 8215 | H35: 8205 | I35: 8215 | J35: 8410 | K35: 8206 | L35: 8214 | N35: 35
A36: 0 | B36: 8173 | C36: 8184 | D36: 8102 | E36: 8165 | F36: 8206 | G36: 8219 | H36: 8208 | I36: 8222 | J36: 8142 | K36: 8187 | L36: 8209 | N36: 36
A37: 0 | B37: 8210 | C37: 8189 | D37: 12340 | E37: 8178 | F37: 8207 | G37: 8191 | H37: 8210 | I37: 8217 | J37: 8388 | K37: 8213 | L37: 8207 | N37: 37
A38: 0 | B38: 8189 | C38: 8180 | D38: 8104 | E38: 8172 | F38: 8206 | G38: 8251 | H38: 8205 | I38: 8214 | J38: 8185 | K38: 8201 | L38: 8209 | N38: 38
A39: 0 | B39: 8207 | C39: 8190 | D39: 12341 | E39: 8179 | F39: 8207 | G39: 8110 | H39: 8194 | I39: 8216 | J39: 8141 | K39: 8207 | L39: 8210 | N39: 39
A40: 0 | B40: 8190 | C40: 8186 | D40: 12316 | E40: 8189 | F40: 8215 | G40: 8128 | H40: 8203 | I40: 8219 | J40: 8436 | K40: 8231 | L40: 8213 | N40: 40
A41: 0 | B41: 8196 | C41: 8186 | D41: 8081 | E41: 8159 | F41: 8208 | G41: 8257 | H41: 8202 | I41: 8225 | J41: 8176 | K41: 8202 | L41: 8208 | N41: 41
A42: 0 | B42: 8209 | C42: 8186 | D42: 12359 | E42: 8185 | F42: 8210 | G42: 7992 | H42: 8188 | I42: 8214 | J42: 8133 | K42: 8189 | L42: 8212 | N42: 42
A43: 0 | B43: 8194 | C43: 8185 | D43: 8063 | E43: 8165 | F43: 8208 | G43: 8369 | H43: 8228 | I43: 8222 | J43: 8405 | K43: 8208 | L43: 8209 | N43: 43
A44: 0 | B44: 8212 | C44: 8188 | D44: 12451 | E44: 8199 | F44: 8210 | G44: 8310 | H44: 8213 | I44: 8219 | J44: 8442 | K44: 8216 | L44: 8208 | N44: 44
A45: 0 | B45: 8187 | C45: 8187 | D45: 8018 | E45: 8162 | F45: 8211 | G45: 8193 | H45: 8206 | I45: 8209 | J45: 7910 | K45: 8175 | L45: 8206 | N45: 45
A46: 0 | B46: 8175 | C46: 8186 | D46: 12413 | E46: 8178 | F46: 8212 | G46: 8084 | H46: 8192 | I46: 8216 | J46: 8177 | K46: 8189 | L46: 8211 | N46: 46
A47: 0 | B47: 8193 | C47: 8181 | D47: 12367 | E47: 8187 | F47: 8212 | G47: 8127 | H47: 8205 | I47: 8224 | J47: 8447 | K47: 8219 | L47: 8209 | N47: 47
A48: 0 | B48: 8181 | C48: 8185 | D48: 8163 | E48: 8182 | F48: 8207 | G48: 8199 | H48: 8203 | I48: 8213 | J48: 8441 | K48: 8224 | L48: 8209 | N48: 48
A49: 0 | B49: 8218 | C49: 8192 | D49: 8050 | E49: 8167 | F49: 8207 | G49: 8124 | H49: 8204 | I49: 8226 | J49: 8137 | K49: 8200 | L49: 8208 | N49: 49
A50: 0 | B50: 8206 | C50: 8188 | D50: 12410 | E50: 8185 | F50: 8209 | G50: 8253 | H50: 8212 | I50: 8213 | J50: 8423 | K50: 8222 | L50: 8207 | N50: 50
A51: 0 | B51: 8208 | C51: 8186 | D51: 12308 | E51: 8174 | F51: 8210 | G51: 8330 | H51: 8213 | I51: 8222 | J51: 8170 | K51: 8181 | L51: 8206 | N51: 51
A52: 0 | B52: 8218 | C52: 8186 | D52: 7973 | E52: 8160 | F52: 8206 | G52: 8153 | H52: 8202 | I52: 8214 | J52: 7671 | K52: 8154 | L52: 8201 | N52: 52
A53: 0 | B53: 8173 | C53: 8184 | D53: 8001 | E53: 8154 | F53: 8206 | G53: 7987 | H53: 8192 | I53: 8219 | J53: 8396 | K53: 8212 | L53: 8212 | N53: 53
A54: 0 | B54: 8201 | C54: 8191 | D54: 12414 | E54: 8185 | F54: 8209 | G54: 8490 | H54: 8237 | I54: 8219 | J54: 8446 | K54: 8235 | L54: 8210 | N54: 54
A55: 0 | B55: 8173 | C55: 8184 | D55: 12327 | E55: 8182 | F55: 8213 | G55: 8294 | H55: 8210 | I55: 8212 | J55: 8190 | K55: 8198 | L55: 8209 | N55: 55
A56: 0 | B56: 8183 | C56: 8186 | D56: 8124 | E56: 8169 | F56: 8209 | G56: 8022 | H56: 8184 | I56: 8219 | J56: 8189 | K56: 8199 | L56: 8208 | N56: 56
A57: 0 | B57: 8194 | C57: 8189 | D57: 12295 | E57: 8178 | F57: 8209 | G57: 7904 | H57: 8180 | I57: 8216 | J57: 8415 | K57: 8204 | L57: 8207 | N57: 57
A58: 0 | B58: 8202 | C58: 8184 | D58: 8047 | E58: 8169 | F58: 8207 | G58: 8260 | H58: 8211 | I58: 8224 | J58: 8145 | K58: 8190 | L58: 8209 | N58: 58
A59: 0 | B59: 8199 | C59: 8189 | D59: 12429 | E59: 8184 | F59: 8208 | G59: 8338 | H59: 8219 | I59: 8218 | J59: 8135 | K59: 8196 | L59: 8206 | N59: 59
A60: 0 | B60: 8181 | C60: 8184 | D60: 12378 | E60: 8181 | F60: 8210 | G60: 8232 | H60: 8214 | I60: 8209 | J60: 8186 | K60: 8199 | L60: 8208 | N60: 60
A61: 0 | B61: 8214 | C61: 8189 | D61: 12319 | E61: 8182 | F61: 8207 | G61: 8252 | H61: 8212 | I61: 8219 | J61: 8141 | K61: 8204 | L61: 8208 | N61: 61
A62: 0 | B62: 8187 | C62: 8188 | D62: 8133 | E62: 8170 | F62: 8208 | G62: 8069 | H62: 8192 | I62: 8214 | J62: 8397 | K62: 8205 | L62: 8212 | N62: 62
A63: 0 | B63: 8187 | C63: 8184 | D63: 12338 | E63: 8175 | F63: 8209 | G63: 8231 | H63: 8212 | I63: 8219 | J63: 8403 | K63: 8214 | L63: 8210 | N63: 63
A64: 0 | B64: 8202 | C64: 8187 | D64: 8158 | E64: 8175 | F64: 8211 | G64: 8263 | H64: 8206 | I64: 8217 | J64: 8131 | K64: 8195 | L64: 8202 | N64: 64
A65: 0 | B65: 8188 | C65: 8188 | D65: 8178 | E65: 8166 | F65: 8209 | G65: 8094 | H65: 8195 | I65: 8214 | J65: 8185 | K65: 8199 | L65: 8207 | N65: 65
A66: 0 | B66: 8194 | C66: 8186 | D66: 12367 | E66: 8181 | F66: 8207 | G66: 8012 | H66: 8193 | I66: 8216 | J66: 8179 | K66: 8209 | L66: 8209 | N66: 66
A67: 0 | B67: 8209 | C67: 8187 | D67: 12353 | E67: 8181 | F67: 8204 | G67: 8342 | H67: 8218 | I67: 8221 | J67: 8391 | K67: 8220 | L67: 8213 | N67: =N66+1 -> 67
A68: 0 | B68: 8191 | C68: 8186 | D68: 8156 | E68: 8171 | F68: 8209 | G68: 8253 | H68: 8212 | I68: 8221 | J68: 8172 | K68: 8197 | L68: 8208 | N68: 68
A69: 0 | B69: 8190 | C69: 8186 | D69: 8007 | E69: 8154 | F69: 8207 | G69: 8153 | H69: 8201 | I69: 8220 | J69: 8169 | K69: 8187 | L69: 8208 | N69: 69
A70: 0 | B70: 8204 | C70: 8184 | D70: 12362 | E70: 8182 | F70: 8213 | G70: 8212 | H70: 8213 | I70: 8222 | J70: 8388 | K70: 8213 | L70: 8209 | N70: 70
A71: 0 | B71: 8214 | C71: 8188 | D71: 12368 | E71: 8180 | F71: 8209 | G71: 8361 | H71: 8222 | I71: 8212 | J71: 8171 | K71: 8189 | L71: 8206 | N71: 71
A72: 0 | B72: 8195 | C72: 8186 | D72: 8030 | E72: 8165 | F72: 8213 | G72: 8175 | H72: 8206 | I72: 8218 | J72: 8174 | K72: 8204 | L72: 8212 | N72: 72
A73: 0 | B73: 8206 | C73: 8188 | D73: 8062 | E73: 8157 | F73: 8206 | G73: 8274 | H73: 8216 | I73: 8219 | J73: 8431 | K73: 8222 | L73: 8211 | N73: 73
A74: 0 | B74: 8210 | C74: 8188 | D74: 12525 | E74: 8187 | F74: 8211 | G74: 8290 | H74: 8213 | I74: 8221 | J74: 8187 | K74: 8202 | L74: 8210 | N74: 74
A75: 0 | B75: 8185 | C75: 8182 | D75: 12393 | E75: 8185 | F75: 8209 | G75: 8140 | H75: 8194 | I75: 8223 | J75: 8179 | K75: 8197 | L75: 8209 | N75: 75
A76: 0 | B76: 8197 | C76: 8184 | D76: 12312 | E76: 8180 | F76: 8208 | G76: 8056 | H76: 8191 | I76: 8210 | J76: 8186 | K76: 8207 | L76: 8205 | N76: 76
A77: 0 | B77: 8212 | C77: 8186 | D77: 12421 | E77: 8190 | F77: 8209 | G77: 8028 | H77: 8196 | I77: 8221 | J77: 8181 | K77: 8209 | L77: 8209 | N77: 77
A78: 0 | B78: 8204 | C78: 8189 | D78: 8136 | E78: 8164 | F78: 8205 | G78: 8181 | H78: 8208 | I78: 8220 | J78: 8138 | K78: 8204 | L78: 8207 | N78: 78
A79: 0 | B79: 8210 | C79: 8189 | D79: 12372 | E79: 8181 | F79: 8210 | G79: 8194 | H79: 8206 | I79: 8212 | J79: 8427 | K79: 8211 | L79: 8209 | N79: 79
A80: 0 | B80: 8218 | C80: 8189 | D80: 8150 | E80: 8170 | F80: 8213 | G80: 8397 | H80: 8226 | I80: 8220 | J80: 8157 | K80: 8203 | L80: 8208 | N80: 80
A81: 0 | B81: 8212 | C81: 8186 | D81: 8025 | E81: 8156 | F81: 8205 | G81: 8132 | H81: 8201 | I81: 8216 | J81: 8182 | K81: 8196 | L81: 8209 | N81: 81
A82: 0 | B82: 8198 | C82: 8182 | D82: 8130 | E82: 8165 | F82: 8206 | G82: 8087 | H82: 8196 | I82: 8216 | J82: 8416 | K82: 8209 | L82: 8211 | N82: 82
A83: 0 | B83: 8165 | C83: 8184 | D83: 12445 | E83: 8182 | F83: 8213 | G83: 8208 | H83: 8209 | I83: 8218 | J83: 8433 | K83: 8228 | L83: 8211 | N83: 83
A84: 0 | B84: 8182 | C84: 8184 | D84: 12531 | E84: 8203 | F84: 8212 | G84: 8371 | H84: 8221 | I84: 8223 | J84: 8135 | K84: 8183 | L84: 8207 | N84: 84
A85: 0 | B85: 8218 | C85: 8188 | D85: 12411 | E85: 8194 | F85: 8211 | G85: 8222 | H85: 8208 | I85: 8210 | J85: 8167 | K85: 8191 | L85: 8206 | N85: 85
A86: 0 | B86: 8216 | C86: 8187 | D86: 8018 | E86: 8157 | F86: 8211 | G86: 8407 | H86: 8231 | I86: 8228 | J86: 8145 | K86: 8191 | L86: 8206 | N86: 86
A87: 0 | B87: 8204 | C87: 8185 | D87: 8091 | E87: 8161 | F87: 8209 | G87: 8159 | H87: 8205 | I87: 8212 | J87: 8147 | K87: 8206 | L87: 8203 | N87: 87
A88: 0 | B88: 8174 | C88: 8181 | D88: 8142 | E88: 8168 | F88: 8209 | G88: 8195 | H88: 8204 | I88: 8227 | J88: 8183 | K88: 8203 | L88: 8208 | N88: 88
A89: 0 | B89: 8184 | C89: 8181 | D89: 12365 | E89: 8186 | F89: 8207 | G89: 8284 | H89: 8208 | I89: 8215 | J89: 8184 | K89: 8206 | L89: 8207 | N89: 89
A90: 0 | B90: 8183 | C90: 8181 | D90: 7989 | E90: 8159 | F90: 8207 | G90: 8062 | H90: 8190 | I90: 8225 | J90: 8184 | K90: 8204 | L90: 8214 | N90: 90
A91: 0 | B91: 8177 | C91: 8186 | D91: 8065 | E91: 8152 | F91: 8206 | G91: 8098 | H91: 8191 | I91: 8211 | J91: 8149 | K91: 8202 | L91: 8208 | N91: 91
A92: 0 | B92: 8194 | C92: 8183 | D92: 12425 | E92: 8182 | F92: 8211 | G92: 8138 | H92: 8204 | I92: 8227 | J92: 8396 | K92: 8214 | L92: 8210 | N92: 92
A93: 0 | B93: 8175 | C93: 8186 | D93: 12460 | E93: 8198 | F93: 8209 | G93: 8378 | H93: 8229 | I93: 8221 | J93: 8180 | K93: 8187 | L93: 8204 | N93: 93
A94: 0 | B94: 8189 | C94: 8188 | D94: 12389 | E94: 8183 | F94: 8212 | G94: 8071 | H94: 8190 | I94: 8219 | J94: 8403 | K94: 8212 | L94: 8210 | N94: 94
A95: 0 | B95: 8198 | C95: 8187 | D95: 8121 | E95: 8167 | F95: 8206 | G95: 8242 | H95: 8216 | I95: 8211 | J95: 8440 | K95: 8218 | L95: 8212 | N95: 95
A96: 0 | B96: 8177 | C96: 8185 | D96: 8050 | E96: 8161 | F96: 8206 | G96: 8420 | H96: 8231 | I96: 8219 | J96: 8427 | K96: 8216 | L96: 8208 | N96: 96
A97: 0 | B97: 8186 | C97: 8184 | D97: 12317 | E97: 8177 | F97: 8208 | G97: 8292 | H97: 8213 | I97: 8218 | J97: 8140 | K97: 8197 | L97: 8207 | N97: 97
A98: 0 | B98: 8211 | C98: 8184 | D98: 12399 | E98: 8185 | F98: 8211 | G98: 8060 | H98: 8186 | I98: 8218 | J98: 8388 | K98: 8218 | L98: 8209 | N98: 98
A99: 0 | B99: 8193 | C99: 8185 | D99: 8181 | E99: 8171 | F99: 8209 | G99: 8260 | H99: 8210 | I99: 8214 | J99: 8434 | K99: 8229 | L99: 8207 | N99: 99
A100: 0 | B100: 8211 | C100: 8187 | D100: 8073 | E100: 8152 | F100: 8207 | G100: 8236 | H100: 8211 | I100: 8223 | J100: 8163 | K100: 8193 | L100: 8207 | N100: 100
A101: 0 | B101: 8198 | C101: 8187 | D101: 12488 | E101: 8191 | F101: 8210 | G101: 8131 | H101: 8201 | I101: 8210 | J101: 8138 | K101: 8185 | L101: 8209 | N101: 101
A102: 0 | B102: 8221 | C102: 8191 | D102: 12385 | E102: 8185 | F102: 8209 | G102: 8167 | H102: 8206 | I102: 8218 | J102: 8439 | K102: 8209 | L102: 8206 | N102: 102
A103: 0 | B103: 8221 | C103: 8189 | D103: 12364 | E103: 8185 | F103: 8208 | G103: 8182 | H103: 8207 | I103: 8218 | J103: 8428 | K103: 8219 | L103: 8211 | N103: 103
A104: 0 | B104: 8196 | C104: 8182 | D104: 8040 | E104: 8156 | F104: 8208 | G104: 8398 | H104: 8223 | I104: 8217 | J104: 8186 | K104: 8200 | L104: 8205 | N104: 104
A105: 0 | B105: 8186 | C105: 8183 | D105: 12336 | E105: 8175 | F105: 8208 | G105: 8157 | H105: 8200 | I105: 8216 | J105: 8155 | K105: 8196 | L105: 8207 | N105: 105
A106: 0 | B106: 8191 | C106: 8185 | D106: 12290 | E106: 8179 | F106: 8210 | G106: 8243 | H106: 8211 | I106: 8220 | J106: 8179 | K106: 8191 | L106: 8209 | N106: 106
A107: 0 | B107: 8197 | C107: 8185 | D107: 12355 | E107: 8181 | F107: 8211 | G107: 8255 | H107: 8214 | I107: 8228 | J107: 8147 | K107: 8197 | L107: 8210 | N107: 107
A108: 0 | B108: 8191 | C108: 8185 | D108: 8029 | E108: 8159 | F108: 8205 | G108: 8237 | H108: 8211 | I108: 8220 | J108: 8165 | K108: 8194 | L108: 8211 | N108: 108
A109: 0 | B109: 8199 | C109: 8188 | D109: 12468 | E109: 8193 | F109: 8209 | G109: 8104 | H109: 8198 | I109: 8213 | J109: 8181 | K109: 8194 | L109: 8207 | N109: 109
A110: 0 | B110: 8192 | C110: 8188 | D110: 12413 | E110: 8180 | F110: 8210 | G110: 8064 | H110: 8190 | I110: 8217 | J110: 8151 | K110: 8191 | L110: 8205 | N110: 110
A111: 0 | B111: 8185 | C111: 8186 | D111: 12316 | E111: 8180 | F111: 8208 | G111: 8247 | H111: 8208 | I111: 8223 | J111: 8413 | K111: 8229 | L111: 8209 | N111: 111
A112: 0 | B112: 8184 | C112: 8184 | D112: 8184 | E112: 8182 | F112: 8209 | G112: 8238 | H112: 8213 | I112: 8221 | J112: 8445 | K112: 8209 | L112: 8212 | N112: 112
A113: 0 | B113: 8206 | C113: 8188 | D113: 8104 | E113: 8163 | F113: 8209 | G113: 7964 | H113: 8183 | I113: 8217 | J113: 8165 | K113: 8186 | L113: 8209 | N113: 113
A114: 0 | B114: 8200 | C114: 8187 | D114: 12374 | E114: 8185 | F114: 8211 | G114: 8208 | H114: 8210 | I114: 8216 | J114: 8414 | K114: 8207 | L114: 8206 | N114: 114
A115: 0 | B115: 8190 | C115: 8184 | D115: 12369 | E115: 8181 | F115: 8210 | G115: 8360 | H115: 8223 | I115: 8212 | J115: 8419 | K115: 8212 | L115: 8205 | N115: 115
A116: 0 | B116: 8185 | C116: 8183 | D116: 8018 | E116: 8155 | F116: 8208 | G116: 8213 | H116: 8203 | I116: 8219 | J116: 8154 | K116: 8200 | L116: 8211 | N116: 116
A117: 0 | B117: 8189 | C117: 8188 | D117: 8182 | E117: 8174 | F117: 8211 | G117: 8203 | H117: 8210 | I117: 8226 | J117: 8135 | K117: 8193 | L117: 8205 | N117: 117
A118: 0 | B118: 8188 | C118: 8189 | D118: 12415 | E118: 8193 | F118: 8209 | G118: 8159 | H118: 8201 | I118: 8215 | J118: 8421 | K118: 8220 | L118: 8214 | N118: 118
A119: 0 | B119: 8197 | C119: 8187 | D119: 8025 | E119: 8160 | F119: 8209 | G119: 8343 | H119: 8223 | I119: 8220 | J119: 8413 | K119: 8210 | L119: 8211 | N119: 119
A120: 0 | B120: 8199 | C120: 8190 | D120: 8073 | E120: 8164 | F120: 8209 | G120: 8150 | H120: 8201 | I120: 8213 | J120: 8129 | K120: 8198 | L120: 8205 | N120: 120
A121: 0 | B121: 8196 | C121: 8184 | D121: 8079 | E121: 8161 | F121: 8210 | G121: 8197 | H121: 8206 | I121: 8219 | J121: 8129 | K121: 8196 | L121: 8207 | N121: 121
A122: 0 | B122: 8182 | C122: 8185 | D122: 12344 | E122: 8182 | F122: 8211 | G122: 8195 | H122: 8203 | I122: 8221 | J122: 8165 | K122: 8197 | L122: 8208 | N122: 122
A123: 0 | B123: 8213 | C123: 8188 | D123: 12448 | E123: 8188 | F123: 8208 | G123: 8182 | H123: 8208 | I123: 8221 | J123: 8129 | K123: 8198 | L123: 8208 | N123: 123
A124: 0 | B124: 8213 | C124: 8190 | D124: 12432 | E124: 8189 | F124: 8213 | G124: 8475 | H124: 8234 | I124: 8223 | J124: 8434 | K124: 8238 | L124: 8212 | N124: 124
A125: 0 | B125: 8194 | C125: 8182 | D125: 7964 | E125: 8152 | F125: 8211 | G125: 8289 | H125: 8216 | I125: 8219 | J125: 8132 | K125: 8190 | L125: 8209 | N125: 125
A126: 0 | B126: 8217 | C126: 8189 | D126: 8030 | E126: 8157 | F126: 8205 | G126: 8178 | H126: 8196 | I126: 8212 | J126: 8157 | K126: 8207 | L126: 8208 | N126: 126
A127: 0 | B127: 8196 | C127: 8186 | D127: 12521 | E127: 8194 | F127: 8210 | G127: 8155 | H127: 8204 | I127: 8220 | J127: 8399 | K127: 8232 | L127: 8210 | N127: 127
A128: 0 | B128: 8177 | C128: 8181 | D128: 12309 | E128: 8178 | F128: 8208 | G128: 8072 | H128: 8188 | I128: 8216 | J128: 8406 | K128: 8209 | L128: 8207 | N128: 128
A129: 0 | B129: 8183 | C129: 8188 | D129: 8186 | E129: 8172 | F129: 8210 | G129: 8138 | H129: 8206 | I129: 8212 | J129: 8173 | K129: 8200 | L129: 8211 | N129: 129
A130: 0 | B130: 8184 | C130: 8190 | D130: 8072 | E130: 8161 | F130: 8206 | G130: 8226 | H130: 8208 | I130: 8225 | J130: 8191 | K130: 8190 | L130: 8205 | N130: 130
A131: 0 | B131: 8221 | C131: 8186 | D131: 12362 | E131: 8177 | F131: 8210 | G131: 8197 | H131: 8201 | I131: 8219 | J131: 8154 | K131: 8197 | L131: 8212 | N131: =N130+1 -> 131
A132: 0 | B132: 8202 | C132: 8184 | D132: 8142 | E132: 8176 | F132: 8208 | G132: 8196 | H132: 8210 | I132: 8211 | J132: 8435 | K132: 8215 | L132: 8206 | N132: 132
A133: 0 | B133: 8184 | C133: 8183 | D133: 8128 | E133: 8164 | F133: 8208 | G133: 8207 | H133: 8208 | I133: 8222 | J133: 8188 | K133: 8197 | L133: 8210 | N133: 133
A134: 0 | B134: 8187 | C134: 8186 | D134: 12454 | E134: 8190 | F134: 8210 | G134: 8231 | H134: 8210 | I134: 8217 | J134: 8167 | K134: 8205 | L134: 8210 | N134: 134
A135: 0 | B135: 8190 | C135: 8185 | D135: 8161 | E135: 8173 | F135: 8212 | G135: 8118 | H135: 8191 | I135: 8218 | J135: 8139 | K135: 8191 | L135: 8204 | N135: 135
A136: 0 | B136: 8174 | C136: 8182 | D136: 12361 | E136: 8182 | F136: 8209 | G136: 8122 | H136: 8196 | I136: 8219 | J136: 8134 | K136: 8190 | L136: 8208 | N136: 136
A137: 0 | B137: 8206 | C137: 8189 | D137: 12359 | E137: 8188 | F137: 8211 | G137: 8326 | H137: 8216 | I137: 8226 | J137: 8435 | K137: 8211 | L137: 8209 | N137: 137
A138: 0 | B138: 8210 | C138: 8186 | D138: 8101 | E138: 8164 | F138: 8209 | G138: 8283 | H138: 8213 | I138: 8219 | J138: 8395 | K138: 8220 | L138: 8213 | N138: 138
A139: 0 | B139: 8187 | C139: 8189 | D139: 8111 | E139: 8164 | F139: 8208 | G139: 8152 | H139: 8204 | I139: 8226 | J139: 8140 | K139: 8201 | L139: 8209 | N139: 139
A140: 0 | B140: 8187 | C140: 8188 | D140: 8132 | E140: 8160 | F140: 8203 | G140: 8165 | H140: 8209 | I140: 8215 | J140: 8144 | K140: 8189 | L140: 8209 | N140: 140
A141: 0 | B141: 8214 | C141: 8192 | D141: 12513 | E141: 8199 | F141: 8215 | G141: 8263 | H141: 8212 | I141: 8211 | J141: 8190 | K141: 8198 | L141: 8211 | N141: 141
A142: 0 | B142: 8182 | C142: 8181 | D142: 8069 | E142: 8171 | F142: 8209 | G142: 8159 | H142: 8202 | I142: 8219 | J142: 8411 | K142: 8218 | L142: 8214 | N142: 142
A143: 0 | B143: 8181 | C143: 8185 | D143: 8120 | E143: 8164 | F143: 8209 | G143: 8184 | H143: 8204 | I143: 8217 | J143: 8184 | K143: 8202 | L143: 8210 | N143: 143
A144: 0 | B144: 8201 | C144: 8192 | D144: 12522 | E144: 8200 | F144: 8214 | G144: 8257 | H144: 8214 | I144: 8227 | J144: 8393 | K144: 8203 | L144: 8209 | N144: 144
A145: 0 | B145: 8202 | C145: 8187 | D145: 12314 | E145: 8184 | F145: 8204 | G145: 8205 | H145: 8211 | I145: 8209 | J145: 8189 | K145: 8198 | L145: 8208 | N145: 145
A146: 0 | B146: 8203 | C146: 8194 | D146: 8189 | E146: 8177 | F146: 8209 | G146: 8097 | H146: 8194 | I146: 8228 | J146: 8392 | K146: 8230 | L146: 8213 | N146: 146
A147: 0 | B147: 8183 | C147: 8186 | D147: 8129 | E147: 8171 | F147: 8210 | G147: 8400 | H147: 8232 | I147: 8220 | J147: 8385 | K147: 8207 | L147: 8207 | N147: 147
A148: 0 | B148: 8210 | C148: 8189 | D148: 12334 | E148: 8175 | F148: 8208 | G148: 8369 | H148: 8216 | I148: 8220 | J148: 8168 | K148: 8202 | L148: 8204 | N148: 148
A149: 0 | B149: 8193 | C149: 8184 | D149: 8010 | E149: 8160 | F149: 8209 | G149: 8076 | H149: 8192 | I149: 8212 | J149: 7906 | K149: 8176 | L149: 8206 | N149: 149
A150: 0 | B150: 8181 | C150: 8177 | D150: 8169 | E150: 8171 | F150: 8208 | G150: 8087 | H150: 8197 | I150: 8219 | J150: 8190 | K150: 8208 | L150: 8207 | N150: 150
A151: 0 | B151: 8200 | C151: 8189 | D151: 12402 | E151: 8189 | F151: 8211 | G151: 8179 | H151: 8208 | I151: 8220 | J151: 8436 | K151: 8233 | L151: 8208 | N151: 151
A152: 0 | B152: 8185 | C152: 8189 | D152: 8021 | E152: 8166 | F152: 8208 | G152: 8298 | H152: 8214 | I152: 8219 | J152: 8181 | K152: 8198 | L152: 8207 | N152: 152
A153: 0 | B153: 8175 | C153: 8185 | D153: 12403 | E153: 8180 | F153: 8212 | G153: 7904 | H153: 8170 | I153: 8209 | J153: 8185 | K153: 8194 | L153: 8209 | N153: 153
A154: 0 | B154: 8198 | C154: 8190 | D154: 12305 | E154: 8178 | F154: 8209 | G154: 8203 | H154: 8208 | I154: 8224 | J154: 8400 | K154: 8224 | L154: 8210 | N154: 154
A155: 0 | B155: 8207 | C155: 8187 | D155: 12332 | E155: 8187 | F155: 8213 | G155: 8364 | H155: 8215 | I155: 8216 | J155: 8135 | K155: 8190 | L155: 8204 | N155: 155
A156: 0 | B156: 8202 | C156: 8190 | D156: 8120 | E156: 8175 | F156: 8205 | G156: 8187 | H156: 8201 | I156: 8227 | J156: 7934 | K156: 8166 | L156: 8208 | N156: 156
A157: 0 | B157: 8193 | C157: 8185 | D157: 12301 | E157: 8173 | F157: 8207 | G157: 8152 | H157: 8202 | I157: 8215 | J157: 8170 | K157: 8198 | L157: 8211 | N157: 157
A158: 0 | B158: 8207 | C158: 8191 | D158: 12445 | E158: 8194 | F158: 8210 | G158: 8016 | H158: 8191 | I158: 8211 | J158: 8424 | K158: 8226 | L158: 8215 | N158: 158
A159: 0 | B159: 8207 | C159: 8187 | D159: 12383 | E159: 8195 | F159: 8216 | G159: 8244 | H159: 8212 | I159: 8221 | J159: 8133 | K159: 8205 | L159: 8209 | N159: 159
A160: 0 | B160: 8206 | C160: 8188 | D160: 8092 | E160: 8170 | F160: 8213 | G160: 8311 | H160: 8210 | I160: 8226 | J160: 8160 | K160: 8187 | L160: 8201 | N160: 160
A161: 0 | B161: 8198 | C161: 8190 | D161: 7889 | E161: 8150 | F161: 8209 | G161: 8141 | H161: 8205 | I161: 8207 | J161: 8169 | K161: 8192 | L161: 8206 | N161: 161
A162: 0 | B162: 8181 | C162: 8189 | D162: 8068 | E162: 8164 | F162: 8209 | G162: 8261 | H162: 8209 | I162: 8223 | J162: 8442 | K162: 8220 | L162: 8211 | N162: 162
A163: 0 | B163: 8169 | C163: 8184 | D163: 12412 | E163: 8187 | F163: 8214 | G163: 8103 | H163: 8196 | I163: 8208 | J163: 8391 | K163: 8212 | L163: 8209 | N163: 163
A164: 0 | B164: 8206 | C164: 8187 | D164: 12446 | E164: 8191 | F164: 8209 | G164: 8121 | H164: 8196 | I164: 8214 | J164: 8154 | K164: 8200 | L164: 8210 | N164: 164
A165: 0 | B165: 8229 | C165: 8189 | D165: 12419 | E165: 8195 | F165: 8208 | G165: 8297 | H165: 8218 | I165: 8219 | J165: 8140 | K165: 8198 | L165: 8210 | N165: 165
A166: 0 | B166: 8202 | C166: 8189 | D166: 8131 | E166: 8176 | F166: 8209 | G166: 8120 | H166: 8198 | I166: 8226 | J166: 8140 | K166: 8189 | L166: 8208 | N166: 166
A167: 0 | B167: 8179 | C167: 8190 | D167: 8072 | E167: 8160 | F167: 8207 | G167: 8094 | H167: 8192 | I167: 8216 | J167: 8411 | K167: 8213 | L167: 8210 | N167: 167
A168: 0 | B168: 8203 | C168: 8183 | D168: 8036 | E168: 8160 | F168: 8207 | G168: 8228 | H168: 8217 | I168: 8219 | J168: 8151 | K168: 8210 | L168: 8208 | N168: 168
A169: 0 | B169: 8213 | C169: 8188 | D169: 8109 | E169: 8164 | F169: 8208 | G169: 8234 | H169: 8216 | I169: 8222 | J169: 8178 | K169: 8189 | L169: 8209 | N169: 169
A170: 0 | B170: 8195 | C170: 8186 | D170: 12392 | E170: 8183 | F170: 8209 | G170: 8315 | H170: 8217 | I170: 8221 | J170: 8435 | K170: 8209 | L170: 8215 | N170: 170
A171: 0 | B171: 8200 | C171: 8191 | D171: 12492 | E171: 8192 | F171: 8211 | G171: 8342 | H171: 8221 | I171: 8220 | J171: 8661 | K171: 8239 | L171: 8208 | N171: 171
A172: 0 | B172: 8188 | C172: 8186 | D172: 12471 | E172: 8197 | F172: 8216 | G172: 8372 | H172: 8223 | I172: 8215 | J172: 8178 | K172: 8195 | L172: 8208 | N172: 172
A173: 0 | B173: 8204 | C173: 8190 | D173: 8183 | E173: 8177 | F173: 8207 | G173: 8082 | H173: 8185 | I173: 8220 | J173: 8135 | K173: 8181 | L173: 8207 | N173: 173
A174: 0 | B174: 8206 | C174: 8188 | D174: 12350 | E174: 8182 | F174: 8208 | G174: 8233 | H174: 8210 | I174: 8215 | J174: 8419 | K174: 8223 | L174: 8209 | N174: 174
A175: 0 | B175: 8192 | C175: 8192 | D175: 12405 | E175: 8186 | F175: 8209 | G175: 8250 | H175: 8217 | I175: 8219 | J175: 8183 | K175: 8213 | L175: 8213 | N175: 175
A176: 0 | B176: 8182 | C176: 8185 | D176: 8071 | E176: 8163 | F176: 8207 | G176: 8093 | H176: 8195 | I176: 8225 | J176: 8129 | K176: 8178 | L176: 8210 | N176: 176
A177: 0 | B177: 8208 | C177: 8185 | D177: 12312 | E177: 8174 | F177: 8206 | G177: 8198 | H177: 8209 | I177: 8213 | J177: 8413 | K177: 8212 | L177: 8207 | N177: 177
A178: 0 | B178: 8217 | C178: 8187 | D178: 8142 | E178: 8178 | F178: 8210 | G178: 8396 | H178: 8226 | I178: 8218 | J178: 8433 | K178: 8211 | L178: 8210 | N178: 178
A179: 0 | B179: 8203 | C179: 8183 | D179: 12315 | E179: 8174 | F179: 8209 | G179: 7931 | H179: 8177 | I179: 8217 | J179: 8129 | K179: 8189 | L179: 8204 | N179: 179
A180: 0 | B180: 8192 | C180: 8188 | D180: 8154 | E180: 8173 | F180: 8206 | G180: 8170 | H180: 8207 | I180: 8221 | J180: 8386 | K180: 8218 | L180: 8209 | N180: 180
A181: 0 | B181: 8232 | C181: 8192 | D181: 12567 | E181: 8195 | F181: 8211 | G181: 8335 | H181: 8224 | I181: 8216 | J181: 8446 | K181: 8234 | L181: 8210 | N181: 181
A182: 0 | B182: 8212 | C182: 8188 | D182: 12323 | E182: 8184 | F182: 8210 | G182: 8339 | H182: 8225 | I182: 8223 | J182: 8147 | K182: 8179 | L182: 8209 | N182: 182
A183: 0 | B183: 8153 | C183: 8180 | D183: 8105 | E183: 8162 | F183: 8210 | G183: 8131 | H183: 8200 | I183: 8212 | J183: 8180 | K183: 8192 | L183: 8208 | N183: 183
A184: 0 | B184: 8205 | C184: 8187 | D184: 12360 | E184: 8178 | F184: 8205 | G184: 8222 | H184: 8210 | I184: 8215 | J184: 8385 | K184: 8232 | L184: 8210 | N184: 184
A185: 0 | B185: 8205 | C185: 8188 | D185: 7995 | E185: 8154 | F185: 8205 | G185: 8252 | H185: 8204 | I185: 8225 | J185: 7901 | K185: 8171 | L185: 8205 | N185: 185
A186: 0 | B186: 8222 | C186: 8188 | D186: 8134 | E186: 8162 | F186: 8210 | G186: 7913 | H186: 8170 | I186: 8210 | J186: 8139 | K186: 8189 | L186: 8209 | N186: 186
A187: 0 | B187: 8192 | C187: 8186 | D187: 12432 | E187: 8190 | F187: 8211 | G187: 8265 | H187: 8208 | I187: 8227 | J187: 8642 | K187: 8230 | L187: 8212 | N187: 187
A188: 0 | B188: 8207 | C188: 8185 | D188: 8134 | E188: 8173 | F188: 8207 | G188: 8329 | H188: 8218 | I188: 8217 | J188: 8191 | K188: 8209 | L188: 8206 | N188: 188
A189: 0 | B189: 8193 | C189: 8190 | D189: 8108 | E189: 8157 | F189: 8206 | G189: 8213 | H189: 8205 | I189: 8221 | J189: 7890 | K189: 8167 | L189: 8204 | N189: 189
A190: 0 | B190: 8191 | C190: 8185 | D190: 12441 | E190: 8190 | F190: 8216 | G190: 8022 | H190: 8187 | I190: 8211 | J190: 8157 | K190: 8194 | L190: 8209 | N190: 190
A191: 0 | B191: 8206 | C191: 8191 | D191: 8135 | E191: 8171 | F191: 8206 | G191: 7954 | H191: 8188 | I191: 8213 | J191: 8433 | K191: 8214 | L191: 8209 | N191: 191
A192: 0 | B192: 8200 | C192: 8187 | D192: 8133 | E192: 8167 | F192: 8208 | G192: 8292 | H192: 8212 | I192: 8224 | J192: 8410 | K192: 8210 | L192: 8212 | N192: 192
A193: 0 | B193: 8182 | C193: 8184 | D193: 8091 | E193: 8162 | F193: 8207 | G193: 8285 | H193: 8215 | I193: 8216 | J193: 8153 | K193: 8194 | L193: 8204 | N193: 193
A194: 0 | B194: 8182 | C194: 8186 | D194: 12315 | E194: 8171 | F194: 8212 | G194: 8222 | H194: 8207 | I194: 8221 | J194: 8414 | K194: 8210 | L194: 8210 | N194: 194
A195: 0 | B195: 8196 | C195: 8187 | D195: 12366 | E195: 8184 | F195: 8211 | G195: 8230 | H195: 8209 | I195: 8220 | J195: 8181 | K195: 8205 | L195: 8209 | N195: =N194+1 -> 195
A196: 0 | B196: 8223 | C196: 8188 | D196: 8177 | E196: 8168 | F196: 8209 | G196: 8207 | H196: 8212 | I196: 8212 | J196: 8165 | K196: 8208 | L196: 8207 | N196: 196
A197: 0 | B197: 8191 | C197: 8183 | D197: 8126 | E197: 8166 | F197: 8209 | G197: 8250 | H197: 8213 | I197: 8217 | J197: 8181 | K197: 8205 | L197: 8207 | N197: 197
A198: 0 | B198: 8202 | C198: 8187 | D198: 8063 | E198: 8160 | F198: 8208 | G198: 8102 | H198: 8201 | I198: 8215 | J198: 8439 | K198: 8212 | L198: 8208 | N198: 198
A199: 0 | B199: 8217 | C199: 8186 | D199: 12702 | E199: 8211 | F199: 8212 | G199: 8288 | H199: 8216 | I199: 8223 | J199: 8438 | K199: 8222 | L199: 8209 | N199: 199
A200: 0 | B200: 8178 | C200: 8185 | D200: 8084 | E200: 8176 | F200: 8210 | G200: 8254 | H200: 8213 | I200: 8215 | J200: 8148 | K200: 8193 | L200: 8207 | N200: 200
... 824 more rows
